[Event "Titled Tuesday Blitz May 30 Early 2023"]
[White "Bilan, Danila"]
[Black "Cesar Maestre, Bernardo"]
[WhiteFideId "24161918"]
[BlackFideId "24542547"]
[WhiteElo "2182"]
[BlackElo "2271"]
[Result "1-0"]
[Round "05"]
[TimeControl "180+2"]
[Date "2023.05.30"]
[WhiteClock "0:00:06"]
[BlackClock "0:00:01"]

1. d4 {[%clk 0:02:59]}  Nf6 {[%clk 0:02:59]} 2. Nf3 {[%clk 0:02:59]}  d5 {[%clk 0:02:58]} 3. c4 {[%clk 0:02:59]}  e6 {[%clk 0:02:56]} 4. Nc3 {[%clk 0:02:58]}  c6 {[%clk 0:02:54]} 5. cxd5 {[%clk 0:02:54]}  exd5 {[%clk 0:02:54]} 6. Bg5 {[%clk 0:02:53]}  h6 {[%clk 0:02:47]} 7. Bh4 {[%clk 0:02:52]}  Be7 {[%clk 0:02:47]} 8. e3 {[%clk 0:02:52]}  Nbd7 {[%clk 0:02:44]} 9. Bd3 {[%clk 0:02:52]}  O-O {[%clk 0:02:44]} 10. Qc2 {[%clk 0:02:52]}  Re8 {[%clk 0:02:39]} 11. O-O {[%clk 0:02:52]}  Ne4 {[%clk 0:02:38]} 12. Bg3 {[%clk 0:02:43]}  Nxg3 {[%clk 0:02:29]} 13. hxg3 {[%clk 0:02:44]}  Bd6 {[%clk 0:02:24]} 14. Rab1 {[%clk 0:02:41]}  a5 {[%clk 0:02:22]} 15. a3 {[%clk 0:02:35]}  Nf6 {[%clk 0:02:09]} 16. b4 {[%clk 0:02:33]}  axb4 {[%clk 0:02:08]} 17. axb4 {[%clk 0:02:34]}  b5 {[%clk 0:02:00]} 18. e4 {[%clk 0:02:24]}  dxe4 {[%clk 0:01:41]} 19. Nxe4 {[%clk 0:02:25]}  Nxe4 {[%clk 0:01:36]} 20. Bxe4 {[%clk 0:02:23]}  Bd7 {[%clk 0:01:28]} 21. Bxc6 {[%clk 0:01:44]}  Rc8 {[%clk 0:01:18]} 22. d5 {[%clk 0:01:44]}  Qb6 {[%clk 0:01:19]} 23. Rfc1 {[%clk 0:01:33]}  Bxc6 {[%clk 0:01:09]} 24. dxc6 {[%clk 0:01:27]}  Bxg3 {[%clk 0:01:09]} 25. Qc5 {[%clk 0:01:18]}  Qxc5 {[%clk 0:00:48]} 26. bxc5 {[%clk 0:00:50]}  Bf4 {[%clk 0:00:45]} 27. Rc2 {[%clk 0:00:43]}  Rxc6 {[%clk 0:00:35]} 28. g3 {[%clk 0:00:41]}  Bb8 {[%clk 0:00:27]} 29. Nd4 {[%clk 0:00:31]}  Rcc8 {[%clk 0:00:20]} 30. c6 {[%clk 0:00:28]}  Be5 {[%clk 0:00:14]} 31. Nxb5 {[%clk 0:00:25]}  Re6 {[%clk 0:00:13]} 32. Na7 {[%clk 0:00:15]}  Rc7 {[%clk 0:00:10]} 33. Rb7 {[%clk 0:00:12]}  Kf8 {[%clk 0:00:09]} 34. Rxc7 {[%clk 0:00:09]}  Bxc7 {[%clk 0:00:10]} 35. Nb5 {[%clk 0:00:10]}  Re7 {[%clk 0:00:10]} 36. Ra2 {[%clk 0:00:09]}  Bb6 {[%clk 0:00:07]} 37. Ra8+ {[%clk 0:00:09]}  Re8 {[%clk 0:00:07]} 38. Ra6 {[%clk 0:00:06]}  Bc5 {[%clk 0:00:04]} 39. c7 {[%clk 0:00:06]}  Rc8 {[%clk 0:00:04]} 40. Rc6 {[%clk 0:00:06]}  Be7 {[%clk 0:00:01]} 41. Na7 {[%clk 0:00:06]} 1-0


[Site "https://www.chess.com"]

[Event "Titled Tuesday Blitz May 30 Early 2023"]
[White "FunnyDuck66"]
[Black "Ladan, Nicholas"]
[BlackFideId "30918855"]
[WhiteElo "2283"]
[BlackElo "2167"]
[Result "1-0"]
[Round "05"]
[TimeControl "180+2"]
[Date "2023.05.30"]
[WhiteClock "0:00:06"]
[BlackClock "0:00:04"]

1. d4 {[%clk 0:02:56]}  d5 {[%clk 0:03:00]} 2. c4 {[%clk 0:02:55]}  c6 {[%clk 0:02:59]} 3. cxd5 {[%clk 0:02:54]}  cxd5 {[%clk 0:03:00]} 4. Bf4 {[%clk 0:02:53]}  Nc6 {[%clk 0:03:00]} 5. e3 {[%clk 0:02:53]}  Nf6 {[%clk 0:03:00]} 6. Bd3 {[%clk 0:02:52]}  a6 {[%clk 0:03:00]} 7. Nc3 {[%clk 0:02:51]}  Bg4 {[%clk 0:02:59]} 8. Nge2 {[%clk 0:02:50]}  e6 {[%clk 0:02:59]} 9. O-O {[%clk 0:02:50]}  Bd6 {[%clk 0:02:58]} 10. Bxd6 {[%clk 0:02:48]}  Qxd6 {[%clk 0:02:59]} 11. Rc1 {[%clk 0:02:49]}  O-O {[%clk 0:02:58]} 12. h3 {[%clk 0:02:49]}  Bh5 {[%clk 0:02:58]} 13. Na4 {[%clk 0:02:49]}  Nd7 {[%clk 0:02:39]} 14. a3 {[%clk 0:02:29]}  e5 {[%clk 0:02:14]} 15. dxe5 {[%clk 0:02:25]}  Ncxe5 {[%clk 0:02:15]} 16. Qd2 {[%clk 0:02:19]}  Nxd3 {[%clk 0:02:08]} 17. Qxd3 {[%clk 0:02:19]}  Ne5 {[%clk 0:02:08]} 18. Qd2 {[%clk 0:02:13]}  Qg6 {[%clk 0:02:00]} 19. Kh2 {[%clk 0:02:01]}  Bf3 {[%clk 0:01:29]} 20. Nf4 {[%clk 0:01:56]}  Qg5 {[%clk 0:01:23]} 21. Qc3 {[%clk 0:00:47]}  Be4 {[%clk 0:00:35]} 22. f3 {[%clk 0:00:19]}  Bg6 {[%clk 0:00:33]} 23. Nxg6 {[%clk 0:00:18]}  Nxg6 {[%clk 0:00:32]} 24. Qd4 {[%clk 0:00:17]}  Rad8 {[%clk 0:00:31]} 25. Nc5 {[%clk 0:00:15]}  b6 {[%clk 0:00:26]} 26. Nd3 {[%clk 0:00:14]}  Rfe8 {[%clk 0:00:23]} 27. Rce1 {[%clk 0:00:14]}  Nh4 {[%clk 0:00:22]} 28. Qg4 {[%clk 0:00:14]}  Qxg4 {[%clk 0:00:19]} 29. hxg4 {[%clk 0:00:15]}  Ng6 {[%clk 0:00:17]} 30. Kg3 {[%clk 0:00:12]}  Rc8 {[%clk 0:00:14]} 31. Rf2 {[%clk 0:00:11]}  Ne7 {[%clk 0:00:12]} 32. Rfe2 {[%clk 0:00:08]}  Nc6 {[%clk 0:00:12]} 33. Nf4 {[%clk 0:00:08]}  Red8 {[%clk 0:00:09]} 34. Rd2 {[%clk 0:00:08]}  Ne7 {[%clk 0:00:10]} 35. Red1 {[%clk 0:00:08]}  g5 {[%clk 0:00:06]} 36. Nxd5 {[%clk 0:00:08]}  Nxd5 {[%clk 0:00:07]} 37. Rxd5 {[%clk 0:00:08]}  Rxd5 {[%clk 0:00:07]} 38. Rxd5 {[%clk 0:00:09]}  Rc2 {[%clk 0:00:08]} 39. Rxg5+ {[%clk 0:00:09]}  Kf8 {[%clk 0:00:08]} 40. Rh5 {[%clk 0:00:09]}  Rxb2 {[%clk 0:00:07]} 41. Rxh7 {[%clk 0:00:10]}  Rb3 {[%clk 0:00:08]} 42. Rh6 {[%clk 0:00:10]}  Ke7 {[%clk 0:00:06]} 43. Kf4 {[%clk 0:00:10]}  f6 {[%clk 0:00:05]} 44. Rh7+ {[%clk 0:00:10]}  Ke6 {[%clk 0:00:04]} 45. Rb7 {[%clk 0:00:10]}  b5 {[%clk 0:00:05]} 46. Rb6+ {[%clk 0:00:10]}  Kf7 {[%clk 0:00:04]} 47. Rxa6 {[%clk 0:00:11]}  Rb2 {[%clk 0:00:03]} 48. g3 {[%clk 0:00:11]}  Rc2 {[%clk 0:00:03]} 49. e4 {[%clk 0:00:11]}  Rc5 {[%clk 0:00:02]} 50. Rb6 {[%clk 0:00:10]}  Kg6 {[%clk 0:00:02]} 51. Ra6 {[%clk 0:00:05]}  Kg7 {[%clk 0:00:02]} 52. Ke3 {[%clk 0:00:05]}  Rc3+ {[%clk 0:00:02]} 53. Kf4 {[%clk 0:00:06]}  Rc5 {[%clk 0:00:02]} 54. Ra5 {[%clk 0:00:06]}  Rc6 {[%clk 0:00:01]} 55. Rxb5 {[%clk 0:00:06]}  Ra6 {[%clk 0:00:02]} 56. Rb3 {[%clk 0:00:06]}  Kg6 {[%clk 0:00:02]} 57. e5 {[%clk 0:00:05]}  fxe5+ {[%clk 0:00:02]} 58. Kxe5 {[%clk 0:00:06]}  Ra5+ {[%clk 0:00:03]} 59. Kf4 {[%clk 0:00:06]}  Kf6 {[%clk 0:00:03]} 60. Rb6+ {[%clk 0:00:06]}  Kf7 {[%clk 0:00:04]} 61. g5 {[%clk 0:00:06]}  Rxa3 {[%clk 0:00:04]} 62. Rb5 {[%clk 0:00:06]}  Ra4+ {[%clk 0:00:04]} 63. Kf5 {[%clk 0:00:06]}  Ra3 {[%clk 0:00:04]} 64. f4 {[%clk 0:00:06]}  Ra6 {[%clk 0:00:04]} 65. Rb7+ {[%clk 0:00:07]}  Kf8 {[%clk 0:00:04]} 66. g6 {[%clk 0:00:07]}  Ra5+ {[%clk 0:00:05]} 67. Kf6 {[%clk 0:00:07]}  Ra6+ {[%clk 0:00:05]} 68. Kg5 {[%clk 0:00:07]}  Kg8 {[%clk 0:00:05]} 69. Kh6 {[%clk 0:00:07]}  Kf8 {[%clk 0:00:06]} 70. f5 {[%clk 0:00:07]}  Ra1 {[%clk 0:00:04]} 71. f6 {[%clk 0:00:06]}  Rh1+ {[%clk 0:00:05]} 72. Kg5 {[%clk 0:00:07]}  Ke8 {[%clk 0:00:05]} 73. g7 {[%clk 0:00:06]}  Rh8 {[%clk 0:00:04]} 74. gxh8=Q# {[%clk 0:00:06]} 1-0


[Site "https://www.chess.com"]

[Event "Titled Tuesday Blitz May 30 Early 2023"]
[White "Jaskolka, Tomasz"]
[Black "Coelho, Ramyres Santana"]
[WhiteFideId "1170791"]
[BlackFideId "2120690"]
[WhiteElo "2155"]
[BlackElo "1888"]
[Result "0-1"]
[Round "05"]
[TimeControl "180+2"]
[Date "2023.05.30"]
[WhiteClock "0:00:10"]
[BlackClock "0:00:40"]

1. d4 {[%clk 0:02:02]}  Nf6 {[%clk 0:02:15]} 2. c4 {[%clk 0:02:01]}  g6 {[%clk 0:02:15]} 3. Nf3 {[%clk 0:01:59]}  Bg7 {[%clk 0:02:15]} 4. g3 {[%clk 0:02:00]}  O-O {[%clk 0:02:15]} 5. Bg2 {[%clk 0:02:01]}  d6 {[%clk 0:02:16]} 6. Nc3 {[%clk 0:02:01]}  c6 {[%clk 0:02:16]} 7. O-O {[%clk 0:02:01]}  Qc7 {[%clk 0:02:17]} 8. e4 {[%clk 0:01:57]}  e5 {[%clk 0:02:16]} 9. h3 {[%clk 0:01:56]}  exd4 {[%clk 0:02:15]} 10. Nxd4 {[%clk 0:01:55]}  Re8 {[%clk 0:02:16]} 11. Be3 {[%clk 0:01:40]}  Nbd7 {[%clk 0:02:15]} 12. Qc2 {[%clk 0:01:41]}  Nc5 {[%clk 0:02:15]} 13. b4 {[%clk 0:01:34]}  Ne6 {[%clk 0:02:15]} 14. Rad1 {[%clk 0:01:30]}  b6 {[%clk 0:02:08]} 15. a3 {[%clk 0:01:25]}  Bb7 {[%clk 0:02:06]} 16. f4 {[%clk 0:01:21]}  Rad8 {[%clk 0:02:05]} 17. f5 {[%clk 0:01:02]}  Nxd4 {[%clk 0:02:02]} 18. Bxd4 {[%clk 0:01:02]}  Nh5 {[%clk 0:01:58]} 19. Bxg7 {[%clk 0:01:02]}  Nxg7 {[%clk 0:01:59]} 20. fxg6 {[%clk 0:01:01]}  fxg6 {[%clk 0:01:55]} 21. Qd3 {[%clk 0:00:58]}  Rf8 {[%clk 0:01:52]} 22. b5 {[%clk 0:00:54]}  c5 {[%clk 0:01:49]} 23. Nd5 {[%clk 0:00:53]}  Bxd5 {[%clk 0:01:49]} 24. exd5 {[%clk 0:00:50]}  Rxf1+ {[%clk 0:01:47]} 25. Rxf1 {[%clk 0:00:50]}  Rf8 {[%clk 0:01:45]} 26. Qe4 {[%clk 0:00:38]}  Rxf1+ {[%clk 0:01:42]} 27. Bxf1 {[%clk 0:00:37]}  Kf8 {[%clk 0:01:40]} 28. Be2 {[%clk 0:00:30]}  Qe7 {[%clk 0:01:38]} 29. Qf4+ {[%clk 0:00:30]}  Nf5 {[%clk 0:01:34]} 30. Bd3 {[%clk 0:00:11]}  Qe1+ {[%clk 0:01:31]} 31. Kg2 {[%clk 0:00:10]}  Kg7 {[%clk 0:01:13]} 32. Bxf5 {[%clk 0:00:09]}  gxf5 {[%clk 0:01:14]} 33. Qg5+ {[%clk 0:00:08]}  Kh8 {[%clk 0:01:11]} 34. Qf6+ {[%clk 0:00:06]}  Kg8 {[%clk 0:01:11]} 35. Qg5+ {[%clk 0:00:07]}  Kh8 {[%clk 0:01:11]} 36. Qxf5 {[%clk 0:00:04]}  Qe2+ {[%clk 0:00:57]} 37. Qf2 {[%clk 0:00:04]}  Qe4+ {[%clk 0:00:55]} 38. Qf3 {[%clk 0:00:05]}  Qc2+ {[%clk 0:00:52]} 39. Qf2 {[%clk 0:00:06]}  Qe4+ {[%clk 0:00:51]} 40. Kg1 {[%clk 0:00:06]}  Kg7 {[%clk 0:00:48]} 41. Qb2+ {[%clk 0:00:06]}  Kg6 {[%clk 0:00:47]} 42. Qc3 {[%clk 0:00:06]}  Qb1+ {[%clk 0:00:45]} 43. Kf2 {[%clk 0:00:06]}  Qe4 {[%clk 0:00:46]} 44. h4 {[%clk 0:00:04]}  h5 {[%clk 0:00:44]} 45. Qe3 {[%clk 0:00:03]}  Qxc4 {[%clk 0:00:43]} 46. Qe6+ {[%clk 0:00:03]}  Kg7 {[%clk 0:00:43]} 47. Qe7+ {[%clk 0:00:04]}  Kg6 {[%clk 0:00:43]} 48. Qg5+ {[%clk 0:00:04]}  Kf7 {[%clk 0:00:43]} 49. Qxh5+ {[%clk 0:00:05]}  Ke7 {[%clk 0:00:44]} 50. Qh7+ {[%clk 0:00:05]}  Kf6 {[%clk 0:00:44]} 51. Qh6+ {[%clk 0:00:06]}  Ke5 {[%clk 0:00:44]} 52. Qf4+ {[%clk 0:00:04]}  Qxf4+ {[%clk 0:00:41]} 53. gxf4+ {[%clk 0:00:05]}  Kxf4 {[%clk 0:00:42]} 54. h5 {[%clk 0:00:01]}  Kg5 {[%clk 0:00:42]} 55. Kf3 {[%clk 0:00:02]}  Kxh5 {[%clk 0:00:42]} 56. Ke4 {[%clk 0:00:03]}  Kg4 {[%clk 0:00:43]} 57. Kd3 {[%clk 0:00:04]}  Kf3 {[%clk 0:00:43]} 58. Kc4 {[%clk 0:00:05]}  Ke4 {[%clk 0:00:43]} 59. Kb3 {[%clk 0:00:06]}  Kd3 {[%clk 0:00:43]} 60. Ka4 {[%clk 0:00:06]}  Kd4 {[%clk 0:00:42]} 61. Kb3 {[%clk 0:00:07]}  Kxd5 {[%clk 0:00:42]} 62. Ka4 {[%clk 0:00:08]}  c4 {[%clk 0:00:41]} 63. Kb4 {[%clk 0:00:08]}  Kd4 {[%clk 0:00:41]} 64. Ka4 {[%clk 0:00:08]}  c3 {[%clk 0:00:41]} 65. Kb3 {[%clk 0:00:08]}  Kd3 {[%clk 0:00:42]} 66. Ka2 {[%clk 0:00:09]}  c2 {[%clk 0:00:41]} 67. a4 {[%clk 0:00:09]}  Kd2 {[%clk 0:00:41]} 68. a5 {[%clk 0:00:10]}  c1=Q {[%clk 0:00:40]} 69. axb6 {[%clk 0:00:11]}  Kc3 {[%clk 0:00:40]} 70. bxa7 {[%clk 0:00:11]}  d5 {[%clk 0:00:40]} 71. a8=Q {[%clk 0:00:10]}  Qb2# {[%clk 0:00:40]} 0-1


[Site "https://www.chess.com"]

[Event "Titled Tuesday Blitz May 30 Early 2023"]
[White "Nugumanov, Bakhtiyar"]
[Black "Devaev, Alexander"]
[WhiteFideId "13701797"]
[BlackFideId "4169395"]
[WhiteElo "2209"]
[BlackElo "2172"]
[Result "1-0"]
[Round "05"]
[TimeControl "180+2"]
[Date "2023.05.30"]
[WhiteClock "0:00:08"]
[BlackClock "0:00:00"]

1. Nf3 {[%clk 0:03:00]}  Nf6 {[%clk 0:02:57]} 2. c4 {[%clk 0:03:00]}  c5 {[%clk 0:02:57]} 3. Nc3 {[%clk 0:02:59]}  e6 {[%clk 0:02:58]} 4. g3 {[%clk 0:02:58]}  Be7 {[%clk 0:02:59]} 5. Bg2 {[%clk 0:02:58]}  O-O {[%clk 0:02:59]} 6. O-O {[%clk 0:02:59]}  Nc6 {[%clk 0:03:00]} 7. d4 {[%clk 0:02:57]}  cxd4 {[%clk 0:03:01]} 8. Nxd4 {[%clk 0:02:58]}  Ne5 {[%clk 0:03:01]} 9. b3 {[%clk 0:02:56]}  d6 {[%clk 0:03:02]} 10. Bb2 {[%clk 0:02:56]}  a6 {[%clk 0:03:03]} 11. e4 {[%clk 0:02:54]}  Qc7 {[%clk 0:03:03]} 12. Qe2 {[%clk 0:02:51]}  Re8 {[%clk 0:03:03]} 13. Rad1 {[%clk 0:02:47]}  Rb8 {[%clk 0:03:04]} 14. Rfe1 {[%clk 0:02:45]}  Bf8 {[%clk 0:03:03]} 15. f4 {[%clk 0:02:42]}  Ng6 {[%clk 0:03:02]} 16. Kh1 {[%clk 0:02:36]}  Nd7 {[%clk 0:02:59]} 17. Nc2 {[%clk 0:02:30]}  b6 {[%clk 0:02:54]} 18. Ne3 {[%clk 0:02:22]}  Bb7 {[%clk 0:02:53]} 19. h3 {[%clk 0:02:13]}  Bc6 {[%clk 0:02:52]} 20. Kh2 {[%clk 0:02:12]}  Qb7 {[%clk 0:02:52]} 21. a4 {[%clk 0:02:03]}  Nc5 {[%clk 0:02:44]} 22. Qc2 {[%clk 0:01:58]}  b5 {[%clk 0:02:32]} 23. axb5 {[%clk 0:01:58]}  axb5 {[%clk 0:02:33]} 24. cxb5 {[%clk 0:01:53]}  Bxb5 {[%clk 0:02:33]} 25. b4 {[%clk 0:01:50]}  Na6 {[%clk 0:02:29]} 26. e5 {[%clk 0:01:48]}  d5 {[%clk 0:02:29]} 27. Nxb5 {[%clk 0:01:37]}  Qxb5 {[%clk 0:02:29]} 28. f5 {[%clk 0:01:38]}  Nxb4 {[%clk 0:02:24]} 29. Qd2 {[%clk 0:01:27]}  Ne7 {[%clk 0:02:16]} 30. f6 {[%clk 0:01:23]}  Ng6 {[%clk 0:02:09]} 31. h4 {[%clk 0:01:19]}  Nc6 {[%clk 0:02:08]} 32. Rb1 {[%clk 0:01:10]}  Bb4 {[%clk 0:02:06]} 33. Bc3 {[%clk 0:01:00]}  Bxc3 {[%clk 0:01:57]} 34. Qxc3 {[%clk 0:01:01]}  Qa6 {[%clk 0:01:30]} 35. Ra1 {[%clk 0:01:00]}  Qb7 {[%clk 0:01:25]} 36. Ng4 {[%clk 0:00:20]}  Rbc8 {[%clk 0:01:16]} 37. fxg7 {[%clk 0:00:19]}  Ncxe5 {[%clk 0:01:10]} 38. Nf6+ {[%clk 0:00:19]}  Kxg7 {[%clk 0:01:06]} 39. Nxe8+ {[%clk 0:00:20]}  Rxe8 {[%clk 0:01:05]} 40. h5 {[%clk 0:00:21]}  Rc8 {[%clk 0:01:03]} 41. Qd4 {[%clk 0:00:18]}  Rc4 {[%clk 0:01:03]} 42. Qa7 {[%clk 0:00:15]}  Ng4+ {[%clk 0:00:55]} 43. Kh3 {[%clk 0:00:12]}  Nf2+ {[%clk 0:00:54]} 44. Qxf2 {[%clk 0:00:12]}  Ne7 {[%clk 0:00:43]} 45. Rac1 {[%clk 0:00:10]}  Rb4 {[%clk 0:00:39]} 46. Rcd1 {[%clk 0:00:09]}  h6 {[%clk 0:00:37]} 47. Rd4 {[%clk 0:00:10]}  Rb2 {[%clk 0:00:36]} 48. Rg4+ {[%clk 0:00:10]}  Kf8 {[%clk 0:00:36]} 49. Qf6 {[%clk 0:00:10]}  Qc6 {[%clk 0:00:24]} 50. Qh8+ {[%clk 0:00:09]}  Ng8 {[%clk 0:00:23]} 51. Qxg8+ {[%clk 0:00:09]}  Ke7 {[%clk 0:00:24]} 52. Rg7 {[%clk 0:00:08]}  Rf2 {[%clk 0:00:22]} 53. Qb8 {[%clk 0:00:06]}  Kf6 {[%clk 0:00:20]} 54. Qh8 {[%clk 0:00:05]}  Ke7 {[%clk 0:00:19]} 55. Qxh6 {[%clk 0:00:06]}  Qc2 {[%clk 0:00:17]} 56. Qg5+ {[%clk 0:00:06]}  Kd6 {[%clk 0:00:15]} 57. Qd8+ {[%clk 0:00:05]}  Kc5 {[%clk 0:00:14]} 58. Qc7+ {[%clk 0:00:06]}  Kb4 {[%clk 0:00:14]} 59. Qxc2 {[%clk 0:00:06]}  Rxc2 {[%clk 0:00:14]} 60. Rxf7 {[%clk 0:00:07]}  d4 {[%clk 0:00:15]} 61. h6 {[%clk 0:00:07]}  Rc5 {[%clk 0:00:15]} 62. g4 {[%clk 0:00:07]}  Rc3+ {[%clk 0:00:15]} 63. Kh4 {[%clk 0:00:07]}  e5 {[%clk 0:00:15]} 64. h7 {[%clk 0:00:07]}  Rc8 {[%clk 0:00:16]} 65. Rg7 {[%clk 0:00:08]}  d3 {[%clk 0:00:16]} 66. Rg8 {[%clk 0:00:08]}  d2 {[%clk 0:00:17]} 67. Rd1 {[%clk 0:00:09]}  Rc1 {[%clk 0:00:16]} 68. Rxd2 {[%clk 0:00:08]}  Rc7 {[%clk 0:00:17]} 69. h8=Q {[%clk 0:00:08]}  Kc3 {[%clk 0:00:15]} 70. Rf2 {[%clk 0:00:08]}  Re7 {[%clk 0:00:15]} 71. Qf6 {[%clk 0:00:08]}  Kd4 {[%clk 0:00:00]} 72. Qxe7 {[%clk 0:00:08]} 1-0


[Site "https://www.chess.com"]

[Event "Titled Tuesday Blitz May 30 Early 2023"]
[White "Dilmukhametov, Artur"]
[Black "Garakov, Mikhael"]
[WhiteFideId "24179922"]
[BlackFideId "4169034"]
[WhiteElo "2242"]
[BlackElo "2347"]
[Result "1-0"]
[Round "05"]
[TimeControl "180+2"]
[Date "2023.05.30"]
[WhiteClock "0:00:09"]
[BlackClock "0:00:00"]

1. e4 {[%clk 0:03:00]}  c5 {[%clk 0:02:59]} 2. f4 {[%clk 0:03:00]}  d5 {[%clk 0:02:58]} 3. exd5 {[%clk 0:03:01]}  Nf6 {[%clk 0:02:53]} 4. Bb5+ {[%clk 0:03:01]}  Bd7 {[%clk 0:02:45]} 5. Bxd7+ {[%clk 0:02:59]}  Qxd7 {[%clk 0:02:36]} 6. c4 {[%clk 0:03:00]}  e6 {[%clk 0:02:32]} 7. Nf3 {[%clk 0:03:00]}  exd5 {[%clk 0:02:26]} 8. Ne5 {[%clk 0:03:00]}  Qd8 {[%clk 0:02:02]} 9. Qb3 {[%clk 0:02:59]}  Qb6 {[%clk 0:01:35]} 10. Nc3 {[%clk 0:02:39]}  d4 {[%clk 0:01:03]} 11. Qxb6 {[%clk 0:02:38]}  axb6 {[%clk 0:01:03]} 12. Nb5 {[%clk 0:02:38]}  Na6 {[%clk 0:01:03]} 13. O-O {[%clk 0:02:26]}  Nd7 {[%clk 0:01:01]} 14. Re1 {[%clk 0:02:15]}  Nxe5 {[%clk 0:01:01]} 15. fxe5 {[%clk 0:02:16]}  Kd7 {[%clk 0:00:57]} 16. d3 {[%clk 0:02:15]}  Be7 {[%clk 0:00:53]} 17. Bd2 {[%clk 0:02:08]}  Rac8 {[%clk 0:00:39]} 18. g3 {[%clk 0:01:53]}  Ke6 {[%clk 0:00:39]} 19. Kg2 {[%clk 0:01:53]}  h5 {[%clk 0:00:38]} 20. Rf1 {[%clk 0:01:49]}  h4 {[%clk 0:00:37]} 21. g4 {[%clk 0:01:48]}  h3+ {[%clk 0:00:36]} 22. Kg3 {[%clk 0:01:35]}  Nb8 {[%clk 0:00:34]} 23. Kf3 {[%clk 0:01:02]}  Nc6 {[%clk 0:00:34]} 24. Bf4 {[%clk 0:01:02]}  Bh4 {[%clk 0:00:21]} 25. Ke4 {[%clk 0:00:57]}  g5 {[%clk 0:00:20]} 26. Bg3 {[%clk 0:00:47]}  Bxg3 {[%clk 0:00:19]} 27. Rf6+ {[%clk 0:00:48]}  Ke7 {[%clk 0:00:17]} 28. hxg3 {[%clk 0:00:48]}  Nb4 {[%clk 0:00:13]} 29. Rxb6 {[%clk 0:00:43]}  Rb8 {[%clk 0:00:13]} 30. Nxd4 {[%clk 0:00:29]}  h2 {[%clk 0:00:07]} 31. Nf5+ {[%clk 0:00:27]}  Kf8 {[%clk 0:00:08]} 32. Rh1 {[%clk 0:00:27]}  Nc2 {[%clk 0:00:08]} 33. Kd5 {[%clk 0:00:21]}  Rd8+ {[%clk 0:00:09]} 34. Kxc5 {[%clk 0:00:21]}  Rh3 {[%clk 0:00:08]} 35. Rxb7 {[%clk 0:00:21]}  Kg8 {[%clk 0:00:09]} 36. d4 {[%clk 0:00:19]}  Rc8+ {[%clk 0:00:07]} 37. Kb5 {[%clk 0:00:16]}  Rd8 {[%clk 0:00:05]} 38. d5 {[%clk 0:00:16]}  Re8 {[%clk 0:00:05]} 39. Re7 {[%clk 0:00:12]}  Rb8+ {[%clk 0:00:04]} 40. Kc5 {[%clk 0:00:09]}  Rxb2 {[%clk 0:00:04]} 41. d6 {[%clk 0:00:09]}  Na3 {[%clk 0:00:01]} 42. d7 {[%clk 0:00:09]}  Rd2 {[%clk 0:00:02]} 43. Nd6 {[%clk 0:00:09]}  Kh7 {[%clk 0:00:03]} 44. Rxf7+ {[%clk 0:00:08]}  Kg6 {[%clk 0:00:00]} 45. d8=Q {[%clk 0:00:09]} 1-0


[Site "https://www.chess.com"]

[Event "Titled Tuesday Blitz May 30 Early 2023"]
[White "Lonoff, Marc"]
[Black "Itgelt, Khuyagtsogt"]
[WhiteFideId "2001349"]
[BlackFideId "4902912"]
[WhiteElo "2141"]
[BlackElo "2227"]
[Result "0-1"]
[Round "05"]
[TimeControl "180+2"]
[Date "2023.05.30"]
[WhiteClock "0:00:00"]
[BlackClock "0:00:26"]

1. c4 {[%clk 0:02:59]}  c5 {[%clk 0:02:55]} 2. Nc3 {[%clk 0:02:59]}  g6 {[%clk 0:02:54]} 3. g3 {[%clk 0:02:59]}  Bg7 {[%clk 0:02:55]} 4. Bg2 {[%clk 0:02:59]}  d6 {[%clk 0:02:51]} 5. e4 {[%clk 0:02:58]}  Nc6 {[%clk 0:02:51]} 6. Nge2 {[%clk 0:02:58]}  Bg4 {[%clk 0:02:51]} 7. h3 {[%clk 0:02:55]}  Bxe2 {[%clk 0:02:51]} 8. Nxe2 {[%clk 0:02:54]}  Nf6 {[%clk 0:02:50]} 9. d3 {[%clk 0:02:54]}  O-O {[%clk 0:02:50]} 10. O-O {[%clk 0:02:52]}  a6 {[%clk 0:02:51]} 11. f4 {[%clk 0:02:45]}  Rb8 {[%clk 0:02:50]} 12. Rb1 {[%clk 0:02:40]}  Nd7 {[%clk 0:02:49]} 13. a3 {[%clk 0:02:39]}  b5 {[%clk 0:02:50]} 14. cxb5 {[%clk 0:02:28]}  axb5 {[%clk 0:02:51]} 15. b4 {[%clk 0:02:13]}  Qb6 {[%clk 0:02:40]} 16. Be3 {[%clk 0:02:10]}  Qa6 {[%clk 0:02:36]} 17. Qb3 {[%clk 0:01:41]}  Rfc8 {[%clk 0:02:35]} 18. Rfd1 {[%clk 0:01:36]}  Bd4 {[%clk 0:02:17]} 19. Nxd4 {[%clk 0:01:31]}  Nxd4 {[%clk 0:02:17]} 20. Bxd4 {[%clk 0:01:28]}  cxd4 {[%clk 0:02:18]} 21. e5 {[%clk 0:01:16]}  dxe5 {[%clk 0:02:07]} 22. Qd5 {[%clk 0:01:15]}  Qd6 {[%clk 0:02:06]} 23. fxe5 {[%clk 0:01:07]}  Nxe5 {[%clk 0:01:54]} 24. Qxd6 {[%clk 0:01:00]}  exd6 {[%clk 0:01:55]} 25. Be4 {[%clk 0:01:00]}  Rc3 {[%clk 0:01:52]} 26. Rbc1 {[%clk 0:00:49]}  Rbc8 {[%clk 0:01:11]} 27. Rxc3 {[%clk 0:00:49]}  Rxc3 {[%clk 0:01:06]} 28. Ra1 {[%clk 0:00:48]}  Nxd3 {[%clk 0:01:03]} 29. a4 {[%clk 0:00:47]}  bxa4 {[%clk 0:00:55]} 30. Rxa4 {[%clk 0:00:46]}  Ne5 {[%clk 0:00:55]} 31. Ra6 {[%clk 0:00:42]}  Rxg3+ {[%clk 0:00:54]} 32. Kf2 {[%clk 0:00:33]}  Rb3 {[%clk 0:00:53]} 33. Rxd6 {[%clk 0:00:31]}  Rxb4 {[%clk 0:00:52]} 34. Rd5 {[%clk 0:00:30]}  f6 {[%clk 0:00:49]} 35. Rd6 {[%clk 0:00:26]}  Kg7 {[%clk 0:00:49]} 36. Ke2 {[%clk 0:00:26]}  Rb3 {[%clk 0:00:48]} 37. Rxd4 {[%clk 0:00:25]}  Rxh3 {[%clk 0:00:48]} 38. Ra4 {[%clk 0:00:25]}  Kh6 {[%clk 0:00:35]} 39. Bg2 {[%clk 0:00:21]}  Rh5 {[%clk 0:00:33]} 40. Ra7 {[%clk 0:00:19]}  Kg5 {[%clk 0:00:33]} 41. Kf2 {[%clk 0:00:17]}  Rh4 {[%clk 0:00:34]} 42. Kg1 {[%clk 0:00:16]}  h5 {[%clk 0:00:34]} 43. Ra5 {[%clk 0:00:16]}  Rg4 {[%clk 0:00:34]} 44. Kf2 {[%clk 0:00:15]}  Rb4 {[%clk 0:00:29]} 45. Kg1 {[%clk 0:00:11]}  h4 {[%clk 0:00:29]} 46. Ra3 {[%clk 0:00:11]}  Kf4 {[%clk 0:00:28]} 47. Kh2 {[%clk 0:00:08]}  g5 {[%clk 0:00:28]} 48. Ra1 {[%clk 0:00:07]}  g4 {[%clk 0:00:28]} 49. Rf1+ {[%clk 0:00:05]}  Kg5 {[%clk 0:00:28]} 50. Re1 {[%clk 0:00:04]}  Rb2 {[%clk 0:00:28]} 51. Kg1 {[%clk 0:00:04]}  h3 {[%clk 0:00:28]} 52. Bh1 {[%clk 0:00:00]}  g3 {[%clk 0:00:26]} 0-1


[Site "https://www.chess.com"]